fUST/lending_fUST_20251102
["ID","MTS","AMOUNT","RATE_DAILY","PERIOD"]
[392840088,1762031450212,-151.0,0.00041901,120]
[392840089,1762031450221,-151.0,0.00041901,120]
[392840090,1762031450230,-268.086703,0.00041901,30]
[392840091,1762031450239,-153.73684,0.00041901,120]
[392840092,1762031450248,-153.73684,0.00041901,120]
[392840093,1762031450257,-153.73684,0.00041901,120]
[392840094,1762031450266,-153.73684,0.00041901,120]
[392840095,1762031450276,-10827.74178738,0.00041944,2]
[392840096,1762031450285,-153.0,0.00042,120]
[392840097,1762031450294,-1000.0,0.00042056,7]
[392840098,1762031450303,-1796.8701192,0.00042138,2]
[392840099,1762031450314,-3613.4413482,0.00042323,2]
[392840100,1762031450323,-266.22,0.000425,30]
[392840101,1762031450334,-151.0,0.0004254,120]
[392840102,1762031450343,-151.0,0.0004254,120]
[392840103,1762031450353,-151.0,0.0004254,120]
[392840104,1762031450363,-151.0,0.0004254,120]
[392840105,1762031450373,-287.880775,0.0004254,120]
[392840106,1762031450383,-287.880775,0.0004254,120]
[392840107,1762031450395,-287.880775,0.0004254,120]
[392840108,1762031450404,-287.880775,0.0004254,120]
[392840109,1762031450415,-151.0,0.000426,17]
[392840110,1762031450426,-1509.49314491,0.00042604,7]
[392840111,1762031450437,-151.0,0.00042607,120]
[392840112,1762031450446,-151.0,0.00042607,120]
[392840113,1762031450456,-151.0,0.00042607,120]
[392840114,1762031450465,-151.0,0.00042607,120]
[392840115,1762031450476,-151.0,0.00042607,120]
[392840116,1762031450486,-1406.4388052,0.00042607,2]
[392840117,1762031450495,-151.0,0.000428,18]
[392840118,1762031450504,-500.0,0.00042822,120]
[392840119,1762031450513,-2390.64,0.00042822,120]
[392840120,1762031450523,-2092.52,0.00042822,120]
[392840121,1762031450533,-561.98,0.00042929,120]
[392840122,1762031450542,-725.05,0.00042929,2]
[392840123,1762031450551,-151.0,0.00042989,120]
[392840124,1762031450561,-151.0,0.00042989,120]
[392840125,1762031450570,-549.36892443,0.0004301,2]
[392840126,1762031450579,-500.0,0.0004301,120]
[392840127,1762031450589,-2390.64,0.0004301,120]
[392840128,1762031450598,-2092.52,0.0004301,120]
[392840129,1762031450607,-393.0,0.00043026,120]
[392840130,1762031450616,-151.0,0.00043033,120]
[392840131,1762031450625,-151.0,0.00043033,120]
[392840132,1762031450634,-151.0,0.00043033,120]
[392840133,1762031450643,-153.73684,0.00043033,120]
[392840134,1762031450652,-153.73684,0.00043033,120]
[392840135,1762031450661,-153.73684,0.00043033,120]
[392840136,1762031450670,-153.736846,0.00043033,120]
[392840137,1762031450679,-561.98,0.00043033,120]
[392840138,1762031450688,-725.05,0.00043033,2]
[392840139,1762031450697,-500.0,0.00043055,120]
[392840140,1762031450706,-211.27,0.00043055,120]
[392840141,1762031450716,-468555.45423506,0.00043065,2]
[392840178,1762031864252,150.0,0.00022874,2]
[392840179,1762031864649,150.0,0.00024953,2]
[392840185,1762032001238,300.0,0.00024999,2]
[392840186,1762032001950,300.0,0.00024999,2]
[392840187,1762032023500,5000.0,0.00025,2]
[392840188,1762032031976,359.15220649,0.00024999,2]
[392840189,1762032039529,1723.35863671,0.00025,2]
[392840190,1762032039554,3276.64136329,0.00025,2]
[392840192,1762032047209,1183.0274329,0.00025,2]
[392840193,1762032062244,5000.0,0.00025,2]
[392840194,1762032084426,540.34120381,0.00025,2]
[392840195,1762032084449,4459.65879619,0.00025,2]
[392840197,1762032107704,5000.0,0.00025,2]
[392840198,1762032130385,540.35120381,0.00025,2]
[392840203,1762032323206,5000.0,0.00025,2]
[392840207,1762032345703,5000.0,0.00025,2]
[392840208,1762032368972,0.01,0.00025,2]
[392840219,1762032483907,4488.84404236,0.00021,5]
[392840222,1762032486597,5511.16595764,0.000125,2]
[392840223,1762032486620,6048.14655403,0.000125,2]
[392840226,1762032495352,2118.1419173,0.000176,2]
[392840227,1762032505124,1833.72152867,0.00017,2]
[392840228,1762032505147,10000.01,0.00017,2]
[392840229,1762032505168,10000.01,0.00017,2]
[392840230,1762032505190,8658.84664189,0.00017,2]
[392840231,1762032505663,1341.16335811,0.00022,5]
[392840232,1762032505686,2135.99239177,0.00022,5]
[392840233,1762032507731,10000.01,0.00015,2]
[392840234,1762032507760,20121.36485205,0.00015,2]
[392840238,1762032521286,327.79749626,0.00024875,14]
[392840239,1762032533476,-300.00661691,0.0002474,2]
[392840240,1762032535579,-299.96578412,0.0002474,2]
[392840241,1762032540795,-462.05601572,0.0002474,2]
[392840242,1762032542456,-162.88488126,0.0002474,2]
[392840243,1762032562279,5000.0,0.0002474,2]
[392840244,1762032564240,-161.62,0.0002474,2]
[392840245,1762032566240,150.0,0.00022645,2]
[392840246,1762032566642,150.0,0.00024704,2]
[392840247,1762032566708,-226.22762231,0.0002474,2]
[392840248,1762032568786,-247.11059673,0.0002474,2]
[392840249,1762032572872,-252.05550831,0.0002474,2]
[392840250,1762032574548,-373.11109552,0.0002474,2]
[392840251,1762032584227,5000.0,0.0002474,2]
[392840252,1762032587604,-600.35781143,0.0002474,2]
[392840253,1762032590254,-355.41389615,0.0002474,2]
[392840254,1762032591911,-304.70042667,0.0002474,2]
[392840256,1762032601149,212.24166161,0.0002472,4]
[392840259,1762032602564,-375.82511611,0.0002474,2]
[392840260,1762032605106,-307.12326665,0.0002474,2]
[392840261,1762032606124,4787.76833839,0.0002474,2]
[392840262,1762032611154,-212.23166161,0.0002474,2]
[392840263,1762032611178,-296.83803839,0.0002474,2]
[392840264,1762032613806,-274.70332372,0.0002474,2]
[392840265,1762032613826,-307.95946143,0.0002474,2]
[392840266,1762032618536,2434.79519073,0.0002464,2]
[392840267,1762032628052,5000.0,0.0002465,2]
[392840304,1762032632180,-300.0,0.000247,2]
[392840306,1762032632190,-142.04053857,0.0002474,2]
[392840308,1762032632199,-257.75946143,0.000248,2]
[392840319,1762032634314,-242.24053857,0.000248,2]
[392840320,1762032634324,-150.0,0.0002482,2]
[392840321,1762032634334,-171.57893774,0.00024902,2]
[392840322,1762032634344,-300.0,0.00024989,2]
[392840323,1762032634353,-265.94,0.0002499,3]
[392840324,1762032634362,-1360.11,0.0002499,10]
[392840325,1762032634371,-536.08661017,0.00024999,2]
[392840326,1762032634380,-2004.94254755,0.00025,2]
[392840327,1762032634389,-8967.2553349,0.00025,15]
[392840328,1762032634398,-792.10223156,0.00025,2]
[392840329,1762032634410,-710.17380002,0.00025,2]
[392840333,1762032635796,2565.21480927,0.0002465,2]
[392840334,1762032635819,2434.78519073,0.0002465,2]
[392840335,1762032638051,-480.0,0.0002499,10]
[392840336,1762032638107,-653.43,0.0002499,10]
[392840337,1762032638117,-138.48524317,0.00025,2]
[392840338,1762032638470,-340.57760448,0.00025,2]
[392840339,1762032638480,-1441.40699058,0.00025,3]
[392840347,1762032640310,-2230.14960121,0.00025,3]
[392840348,1762032640319,-64119.59758269,0.00025,2]
[392840352,1762032640600,-3e-08,0.00025,2]
[392840354,1762032643310,-300.0,0.000247,2]
[392840355,1762032643320,-369875.11844207,0.00025,2]
[392840356,1762032643330,-208.58,0.00025,14]
[392840357,1762032643340,-5291.21,0.00025,7]
[392840358,1762032643350,-1833.31173499,0.00025002,2]
[392840359,1762032643360,-441.97567115,0.00025002,2]
[392840360,1762032643369,-177.0,0.0002682,2]
[392840361,1762032643379,-3067.46602677,0.0002699,2]
[392840362,1762032643389,-99753.819767,0.00027,10]
[392840363,1762032643400,-247.05312927,0.00027302,2]
[392840364,1762032643409,-152.0,0.00027963,3]
[392840365,1762032643419,-167.7283462,0.00027963,3]
[392840366,1762032643429,-204.0,0.0002882,2]
[392840367,1762032643439,-1656.86,0.000289,2]
[392840368,1762032643449,-171.57893772,0.00029277,2]
[392840369,1762032643459,-15570.89840583,0.0003,30]
[392840370,1762032643469,-231.0,0.0003082,2]
[392840371,1762032643479,-166.827083,0.00031107,20]
[392840372,1762032643488,-247.05312927,0.00032177,4]
[392840373,1762032643497,-200.21445452,0.0003239,2]
[392840374,1762032643506,-166.827083,0.00032509,20]
[392840375,1762032643515,-152.829773,0.00032509,20]
[392840376,1762032643524,-258.0,0.0003282,2]
[392840377,1762032643534,-158.61227196,0.000332,117]
[392840378,1762032643544,-1833.31173499,0.00033487,2]
[392840379,1762032643552,-171.57893772,0.00033653,2]
[392840380,1762032643562,-160.0,0.000338,2]
[392840381,1762032643570,-200.0,0.00034348,2]
[392840382,1762032643580,-403.98447456,0.00034382,2]
[392840383,1762032643589,-285.0,0.0003482,120]
[392840384,1762032643598,-30686.06789782,0.00034998,2]
[392840385,1762032643608,-312.0,0.0003682,120]
[392840386,1762032643616,-500.0,0.00036986,8]
[392840387,1762032643626,-500.0,0.00036986,8]
[392840388,1762032643634,-500.0,0.00036986,8]
[392840389,1762032643644,-500.0,0.00036986,8]
[392840390,1762032643653,-500.0,0.00036986,8]
[392840391,1762032643661,-500.0,0.00036986,8]
[392840392,1762032643670,-500.0,0.00036986,8]
[392840393,1762032643680,-500.0,0.00036986,8]
[392840394,1762032643689,-500.0,0.00036986,8]
[392840395,1762032643697,-500.0,0.00036986,8]
[392840396,1762032643707,-500.0,0.00036986,8]
[392840397,1762032643715,-500.0,0.00036986,8]
[392840398,1762032643724,-500.0,0.00036986,8]
[392840399,1762032643733,-500.0,0.00036986,8]
[392840400,1762032643742,-500.0,0.00036986,8]
[392840401,1762032643751,-500.0,0.00036986,8]
[392840402,1762032643760,-500.0,0.00036986,8]
[392840403,1762032643769,-500.0,0.00036986,8]
[392840404,1762032643778,-500.0,0.00036986,8]
[392840405,1762032643787,-500.0,0.00036986,8]
[392840406,1762032643797,-501.85939439,0.00036986,8]
[392840407,1762032643806,-188.74661187,0.00036986,8]
[392840408,1762032643815,-500.0,0.00036986,8]
[392840409,1762032643824,-247.3001824,0.00037052,7]
[392840410,1762032643833,-208.58,0.000372,30]
[392840411,1762032643842,-239.51862227,0.000372,14]
[392840412,1762032643857,-5051.69137773,0.000372,14]
[392840413,1762032643865,-312.0,0.0003736,2]
[392840414,1762032643875,-7121.08113452,0.00038,30]
[392840415,1762032643884,-171.57893772,0.00038028,2]
[392840416,1762032643892,-151.0,0.00038077,2]
[392840417,1762032643902,-151.0,0.00038077,2]
[392840418,1762032643911,-151.0,0.00038077,2]
[392840419,1762032643920,-151.0,0.00038077,2]
[392840420,1762032643929,-151.0,0.00038077,2]
[392840421,1762032643938,-151.0,0.00038077,2]
[392840422,1762032643947,-151.0,0.00038077,2]
[392840423,1762032643956,-151.0,0.00038077,2]
[392840424,1762032643965,-151.0,0.00038077,2]
[392840425,1762032643974,-151.0,0.00038077,2]
[392840426,1762032643983,-151.0,0.00038077,2]
[392840427,1762032643992,-151.0,0.00038077,2]
[392840428,1762032644001,-151.0,0.00038077,2]
[392840429,1762032644010,-151.0,0.00038077,2]
[392840430,1762032644019,-151.0,0.00038077,2]
[392840431,1762032644028,-151.0,0.00038077,2]
[392840432,1762032644037,-151.0,0.00038077,2]
[392840433,1762032644046,-151.0,0.00038077,2]
[392840434,1762032644055,-151.0,0.00038077,2]
[392840435,1762032644065,-151.0,0.00038077,2]
[392840436,1762032644074,-581.17,0.000381,2]
[392840437,1762032644084,-113516.40466295,0.00038128,20]
[392840442,1762032646267,-500.0,0.00036986,8]
[392840443,1762032646276,-500.0,0.00036986,8]
[392840444,1762032646286,-218.64,0.00036986,8]
[392840445,1762032646295,-500.0,0.00036986,8]
[392840446,1762032646304,-500.0,0.00036986,8]
[392840447,1762032646313,-500.0,0.00036986,8]
[392840448,1762032646322,-500.0,0.00036986,8]
[392840449,1762032646331,-500.0,0.00036986,8]
[392840450,1762032646340,-18071.89128471,0.00038128,20]
[392840453,1762032646656,-667475.11578243,0.00038128,20]
[392840454,1762032653344,-276.52831282,0.000247,2]
[392840455,1762032658857,5000.0,0.0002465,2]
[392840456,1762032681517,2393.82335141,0.0002465,2]
[392840457,1762032682237,-23.47168718,0.000247,2]
[392840458,1762032682258,-300.0,0.000247,2]
[392840459,1762032682278,-30.15041706,0.000247,2]
[392840460,1762032796214,150.0,0.00022349,2]
[392840461,1762032796598,150.0,0.00024381,2]
[392840462,1762032846556,5000.0,0.0002465,2]
[392840463,1762032869358,168.0929117,0.0002465,2]
[392840464,1762032872933,150.0,0.00022175,2]
[392840465,1762032873351,150.0,0.00024191,2]
[392840466,1762033025395,150.0,0.00022048,2]
[392840467,1762033025799,150.0,0.00024052,2]
[392840468,1762033098789,150.0,0.00021935,2]
[392840469,1762033099235,150.0,0.00023929,2]
[392840470,1762033250068,5000.0,0.0002465,2]
[392840471,1762033257787,4100.01,0.0002465,2]
[392840472,1762033257809,899.99,0.0002465,2]
[392840473,1762033266304,5000.0,0.0002465,2]
[392840474,1762033274647,1600.69012418,0.0002465,2]
[392840475,1762033282691,2499.32987582,0.0002465,2]
[392840476,1762033282713,2500.67012418,0.0002465,2]
[392840477,1762033290371,5000.0,0.0002465,2]
[392840478,1762033306516,2499.33987582,0.0002465,2]
[392840479,1762033306540,2422.61173283,0.0002465,2]
[392840480,1762033392224,150.0,0.00022106,2]
[392840481,1762033392856,150.0,0.00024116,2]
[392840482,1762033467383,150.0,0.00021178,2]
[392840483,1762033467806,150.0,0.00023103,2]
[392840485,1762033541311,150.0,0.00021437,2]
[392840486,1762033541695,150.0,0.00023386,2]
[392840487,1762033549230,5000.0,0.0002465,2]
[392840488,1762033556922,1141.80034382,0.0002465,2]
[392840489,1762033571974,535.59792335,0.0002465,2]
[392840490,1762033583470,-348.81486615,0.0002465,2]
[392840491,1762033589089,-214.45195192,0.0002465,2]
[392840492,1762033591429,-630.60365295,0.0002465,2]
[392840493,1762033597596,-169.44009325,0.0002465,2]
[392840494,1762033606473,-315.8224616,0.0002465,2]
[392840495,1762033614388,150.0,0.00021583,2]
[392840496,1762033614783,150.0,0.00023545,2]
[392840497,1762033615161,-230.82507551,0.0002465,2]
[392840498,1762033620713,-569.67903736,0.0002465,2]
[392840499,1762033622349,-408.53034593,0.0002465,2]
[392840500,1762033643805,408.53034593,0.0002465,2]
[392840501,1762033684997,150.0,0.00021534,2]
[392840502,1762033685525,150.0,0.00023491,2]
[392840503,1762033698459,2310.19609881,0.0002455,2]
[392840504,1762033755099,150.0,0.0002251,2]
[392840505,1762033755491,150.0,0.00024556,2]
[392840506,1762033765718,1031.02127922,0.0002465,2]
[392840508,1762033804533,349.23203,0.00013699,2]
[392840509,1762033804748,349.23203,0.00020187,2]
[392840510,1762033823467,150.0,0.00022565,2]
[392840511,1762033824004,150.0,0.00024617,2]
[392840548,1762033832387,-499.0,0.0002465,2]
[392840550,1762033832397,-150.0,0.0002489,2]
[392840552,1762033832407,-799.0,0.00024998,2]
[392840554,1762033832417,-300.0,0.00025,2]
[392840556,1762033832426,-1708.12,0.00025,4]
[392840558,1762033832435,-7030.73577562,0.00025206,2]
[392840560,1762033832444,-150.0,0.00026602,2]
[392840562,1762033832453,-349.23203,0.00026676,2]
[392840564,1762033832463,-177.0,0.0002689,2]
[392840566,1762033832473,-3295.37734981,0.00027983,16]
[392840568,1762033832482,-1500.0,0.00028,4]
[392840570,1762033832492,-150.0,0.00028649,2]
[392840572,1762033832501,-204.0,0.0002889,2]
[392840574,1762033832510,-150.0,0.00030695,2]
[392840576,1762033832523,-231.0,0.0003089,2]
[392840578,1762033832532,-300.0,0.000316,2]
[392840580,1762033832541,-195.62080487,0.00031968,2]
[392840582,1762033832551,-150.0,0.00032741,2]
[392840584,1762033832560,-258.0,0.0003289,120]
[392840586,1762033832569,-349.23203,0.00033165,2]
[392840588,1762033832579,-372.66323046,0.00033651,2]
[392840590,1762033832588,-230.84344636,0.00034547,4]
[392840592,1762033832598,-150.0,0.00034788,2]
[392840594,1762033832607,-285.0,0.0003489,120]
[392840596,1762033832616,-153.0,0.00035,120]
[392840598,1762033832630,-191.85,0.0003516,7]
[392840600,1762033832639,-659.63210637,0.00036786,2]
[392840628,1762033838309,-925.08502551,0.00036786,2]
[392840629,1762033838322,-151.0,0.00036864,2]
[392840630,1762033838337,-151.0,0.00036864,2]
[392840631,1762033838351,-151.0,0.00036864,2]
[392840632,1762033838364,-151.0,0.00036864,2]
[392840633,1762033838377,-151.0,0.00036864,2]
[392840634,1762033838389,-151.0,0.00036864,2]
[392840635,1762033838402,-151.0,0.00036864,2]
[392840636,1762033838415,-151.0,0.00036864,2]
[392840637,1762033838427,-151.0,0.00036864,2]
[392840638,1762033838439,-151.0,0.00036864,2]
[392840639,1762033838452,-151.0,0.00036864,2]
[392840640,1762033838463,-151.0,0.00036864,2]
[392840641,1762033838476,-151.0,0.00036864,2]
[392840642,1762033838487,-151.0,0.00036864,2]
[392840643,1762033838497,-151.0,0.00036864,2]
[392840644,1762033838509,-151.0,0.00036864,2]
[392840645,1762033838520,-151.0,0.00036864,2]
[392840646,1762033838533,-151.0,0.00036864,2]
[392840647,1762033838545,-151.0,0.00036864,2]
[392840648,1762033838558,-151.0,0.00036864,2]
[392840649,1762033838570,-7120.57885404,0.00036886,2]
[392840650,1762033838582,-312.0,0.0003689,120]
[392840651,1762033838596,-705.43,0.00036966,10]
[392840652,1762033838609,-826.95,0.00036966,10]
[392840653,1762033838623,-689.13,0.00036966,10]
[392840654,1762033838638,-500.0,0.00036973,5]
[392840655,1762033838649,-375.26062712,0.00036975,15]
[392840656,1762033838659,-646.61,0.00036976,3]
[392840657,1762033838671,-80849.9820177,0.00036976,3]
[392840658,1762033838681,-732.16270512,0.00036976,3]
[392840659,1762033838692,-1000.0,0.00036985,2]
[392840660,1762033838705,-1000.0,0.00036985,2]
[392840661,1762033838719,-1000.0,0.00036985,2]
[392840662,1762033838732,-1000.0,0.00036985,2]
[392840663,1762033838742,-1000.0,0.00036985,2]
[392840664,1762033838753,-500.0,0.00036986,8]
[392840665,1762033838765,-503.69819145,0.00036986,8]
[392840666,1762033838777,-500.0,0.00036986,8]
[392840667,1762033838789,-504.54857785,0.00036986,8]
[392840668,1762033838800,-500.0,0.00036986,7]
[392840669,1762033838810,-500.0,0.00036986,7]
[392840670,1762033838821,-500.0,0.00036986,7]
[392840671,1762033838831,-500.0,0.00036986,7]
[392840672,1762033838843,-500.0,0.00036986,7]
[392840673,1762033838853,-500.0,0.00036986,7]
[392840674,1762033838867,-500.0,0.00036986,7]
[392840675,1762033838878,-504.02806653,0.00036986,7]
[392840676,1762033838889,-500.0,0.00036986,8]
[392840677,1762033838901,-534.34555555,0.00036986,8]
[392840678,1762033838912,-500.0,0.00036986,8]
[392840679,1762033838923,-530.96705318,0.00036986,8]
[392840680,1762033838935,-500.0,0.00036986,8]
[392840681,1762033838947,-500.0,0.00036986,8]
[392840682,1762033838958,-500.0,0.00036986,8]
[392840683,1762033838969,-500.0,0.00036986,8]
[392840684,1762033838980,-500.0,0.00036986,8]
[392840685,1762033838991,-500.0,0.00036986,8]
[392840686,1762033839003,-500.0,0.00036986,8]
[392840687,1762033839014,-500.0,0.00036986,8]
[392840688,1762033839025,-500.0,0.00036986,8]
[392840689,1762033839036,-532.23578965,0.00036986,8]
[392840690,1762033839047,-500.0,0.00036986,8]
[392840691,1762033839058,-502.40574611,0.00036986,8]
[392840692,1762033839069,-500.0,0.00036986,8]
[392840693,1762033839080,-503.8746865,0.00036986,8]
[392840694,1762033839091,-500.0,0.00036986,8]
[392840695,1762033839102,-502.42126894,0.00036986,8]
[392840696,1762033839113,-500.0,0.00036986,8]
[392840697,1762033839124,-500.0,0.00036986,8]
[392840698,1762033839135,-505.13029483,0.00036986,8]
[392840699,1762033839146,-500.0,0.00036986,8]
[392840700,1762033839156,-457.22438287,0.00036986,8]
[392840701,1762033839167,-500.0,0.00036986,8]
[392840702,1762033839179,-500.0,0.00036986,8]
[392840703,1762033839190,-500.0,0.00036986,8]
[392840704,1762033839199,-500.0,0.00036986,8]
[392840705,1762033839323,-500.0,0.00036986,8]
[392840706,1762033839339,-500.0,0.00036986,8]
[392840707,1762033839349,-500.0,0.00036986,8]
[392840708,1762033839358,-500.0,0.00036986,8]
[392840709,1762033839367,-500.0,0.00036986,8]
[392840710,1762033839377,-589.07340901,0.00036986,8]
[392840711,1762033839386,-500.0,0.00036986,8]
[392840712,1762033839396,-505.50344548,0.00036986,8]
[392840713,1762033839405,-204.25538263,0.00036986,8]
[392840714,1762033839414,-500.0,0.00036986,8]
[392840715,1762033839423,-508.18733392,0.00036986,8]
[392840716,1762033839432,-500.0,0.00036986,8]
[392840717,1762033839443,-505.18248751,0.00036986,8]
[392840718,1762033839453,-500.0,0.00036986,8]
[392840719,1762033839462,-500.0,0.00036986,8]
[392840720,1762033839471,-506.12908942,0.00036986,8]
[392840721,1762033839481,-500.0,0.00036986,8]
[392840722,1762033839490,-500.0,0.00036986,8]
[392840723,1762033839500,-248.85565976,0.00036986,8]
[392840724,1762033839510,-500.0,0.00036986,8]
[392840725,1762033839519,-500.0,0.00036986,8]
[392840726,1762033839529,-500.0,0.00036986,8]
[392840727,1762033839539,-500.0,0.00036986,8]
[392840728,1762033839549,-500.0,0.00036986,8]
[392840729,1762033839558,-500.0,0.00036986,8]
[392840730,1762033839567,-500.0,0.00036986,8]
[392840731,1762033839577,-500.0,0.00036986,8]
[392840732,1762033839586,-581.79773208,0.00036986,8]
[392840733,1762033839595,-500.0,0.00036986,8]
[392840734,1762033839604,-500.0,0.00036986,8]
[392840735,1762033839614,-500.0,0.00036986,8]
[392840736,1762033839626,-551.53,0.00036986,8]
[392840737,1762033839635,-500.0,0.00036986,8]
[392840738,1762033839644,-500.0,0.00036986,8]
[392840739,1762033839654,-500.0,0.00036986,8]
[392840740,1762033839663,-500.0,0.00036986,8]
[392840741,1762033839673,-561.79864331,0.00036986,8]
[392840742,1762033839683,-500.0,0.00036986,8]
[392840743,1762033839693,-500.0,0.00036986,8]
[392840744,1762033839702,-504.75002276,0.00036986,8]
[392840745,1762033839711,-505.83973629,0.00036986,8]
[392840746,1762033839721,-504.56549705,0.00036986,8]
[392840747,1762033839731,-500.0,0.00036986,8]
[392840748,1762033839741,-500.0,0.00036986,8]
[392840749,1762033839751,-500.0,0.00036986,8]
[392840750,1762033839760,-500.0,0.00036986,8]
[392840751,1762033839770,-500.0,0.00036986,8]
[392840752,1762033839781,-500.0,0.00036986,8]
[392840753,1762033839791,-450.93991063,0.00036986,8]
[392840754,1762033839800,-500.0,0.00036986,8]
[392840755,1762033839809,-500.0,0.00036986,8]
[392840756,1762033839818,-505.41934281,0.00036986,8]
[392840757,1762033839827,-500.0,0.00036986,8]
[392840758,1762033839838,-500.0,0.00036986,8]
[392840759,1762033839849,-504.74085041,0.00036986,8]
[392840760,1762033839858,-500.0,0.00036986,8]
[392840761,1762033839868,-598.21120139,0.00036986,8]
[392840762,1762033839878,-500.0,0.00036986,8]
[392840763,1762033839887,-500.0,0.00036986,8]
[392840764,1762033839896,-506.51378251,0.00036986,8]
[392840765,1762033839905,-500.0,0.00036986,8]
[392840766,1762033839915,-500.0,0.00036986,8]
[392840767,1762033839924,-500.0,0.00036986,8]
[392840768,1762033839933,-500.0,0.00036986,8]
[392840769,1762033839943,-500.0,0.00036986,8]
[392840771,1762033839952,-530.4252995,0.00036986,8]
[392840773,1762033839961,-500.0,0.00036986,8]
[392840774,1762033839970,-500.0,0.00036986,8]
[392840775,1762033839979,-508.07543353,0.00036986,8]
[392840776,1762033839989,-500.0,0.00036986,8]
[392840778,1762033839998,-500.0,0.00036986,8]
[392840779,1762033840007,-176.3075999,0.00036986,8]
[392840780,1762033840017,-506.86874919,0.00036986,8]
[392840781,1762033840027,-500.0,0.00036986,8]
[392840782,1762033840037,-462.85450734,0.00036986,8]
[392840783,1762033840046,-506.6738424,0.00036986,8]
[392840784,1762033840056,-503.62602304,0.00036986,8]
[392840785,1762033840064,-500.0,0.00036986,8]
[392840786,1762033840074,-500.0,0.00036986,8]
[392840787,1762033840083,-508.18085924,0.00036986,8]
[392840788,1762033840092,-452.21580028,0.00036986,8]
[392840789,1762033840100,-505.05988453,0.00036986,8]
[392840791,1762033840109,-500.0,0.00036986,8]
[392840792,1762033840118,-500.0,0.00036986,8]
[392840793,1762033840127,-235.01,0.00036986,8]
[392840794,1762033840136,-500.0,0.00036986,8]
[392840795,1762033840145,-639.08447981,0.00036986,8]
[392840796,1762033840153,-182.44954431,0.00036986,8]
[392840797,1762033840163,-500.0,0.00036986,8]
[392840798,1762033840171,-629.94459716,0.00036986,8]
[392840799,1762033840181,-505.61205649,0.00036986,8]
[392840800,1762033840190,-507.77545795,0.00036986,8]
[392840801,1762033840199,-656.92,0.00036986,8]
[392840802,1762033840207,-656.92,0.00036986,8]
[392840803,1762033840216,-656.92,0.00036986,8]
[392840804,1762033840225,-656.92,0.00036986,8]
[392840805,1762033840234,-656.92,0.00036986,8]
[392840806,1762033840243,-656.92,0.00036986,8]
[392840807,1762033840252,-656.92,0.00036986,8]
[392840808,1762033840261,-656.92,0.00036986,8]
[392840809,1762033840271,-656.92,0.00036986,8]
[392840810,1762033840280,-656.92,0.00036986,8]
[392840811,1762033840289,-656.92,0.00036986,8]
[392840812,1762033840298,-656.92,0.00036986,8]
[392840813,1762033840307,-656.92,0.00036986,8]
[392840814,1762033840316,-509.67525543,0.00036986,8]
[392840815,1762033840325,-656.92,0.00036986,8]
[392840817,1762033840334,-656.92,0.00036986,8]
[392840819,1762033840343,-656.92,0.00036986,8]
[392840820,1762033840352,-656.92,0.00036986,8]
[392840821,1762033840361,-656.92,0.00036986,8]
[392840822,1762033840371,-656.92,0.00036986,8]